Cogmind - Beta 15 @@@ ROGUE MODE // 2025.05.22 @ 19:32:00 Player: Lillith Result: Self-destructed Performance ------------- Evolutions (1) 500 Regions Visited (6) 1200 Robots Destroyed (26) 130 Value Destroyed (650) 650 Prototype IDs (14) 280 Alien Tech Used (0) 0 Bonus (800) 800 TOTAL SCORE: 3560 Bonus ------- Registered with UFD 300 Met Optimus in HQ 500 Cogmind --------- Core Integrity 316/400 Matter 295/300 Energy 160/160 System Corruption 3% Temperature Cool (0) Movement Hovering (116) Ox1 Location -9/Scraptown Parts ------- > --- POWER (1) -------- Light Nuclear Core > --- PROPULSION (3) --- Improved Hover Unit Improved Hover Unit > --- UTILITY (3) ------ Improved Heat Sink Medium Storage Unit A0-MCA's Component Scanner > --- WEAPON (2) ------- Companion Sword > --- INVENTORY (10) --- Seismic Detector Melee Analysis Suite Transmission Jammer Improved Light Armor Plating Improved Hacking Suite Improved Hacking Suite DM-GVY's Chainsaw Large Botcube PL-3XN's Ring of Power Peak State ------------ > --- POWER ------------ Light Nuclear Core > --- PROPULSION ------- Improved Hover Unit Improved Hover Unit Improved Hover Unit > --- UTILITY ---------- Improved Heat Sink Medium Storage Unit A0-MCA's Component Scanner > --- WEAPON ----------- Companion Sword > --- INVENTORY -------- Seismic Detector Transmission Jammer Improved Light Armor Plating Improved Hacking Suite Improved Hacking Suite Improved Datajack DM-GVY's Chainsaw Large Botcube PL-3XN's Ring of Power [Rating: 34] Favorites ----------- Power Ion Engine Engine Ion Engine Power Core Light Nuclear Core Propulsion Improved Hover Unit Treads Light Treads Wheel Compact Wheel Hover Unit Improved Hover Unit Utility Medium Storage Unit Device Improved Terrain Scanner Storage Medium Storage Unit Processor A0-MCA's Component Scanner Weapon Advanced Beam Cannon Energy Gun Beam Rifle Energy Cannon Advanced Beam Cannon Ballistic Gun Light Assault Rifle Ballistic Cannon Light Cannon Slashing Weapon Companion Sword Special Melee Weapon Datajack Build | -11 -10 -10 -9 -9 -9 -9 ------- Run | Yrd Mat Min Mat Sto Rec Scr Slots Evolved 2 | . . . 2 . . . Power . | . . . . . . . Propulsion 1 | . . . 1 . . . Utility 1 | . . . 1 . . . Weapon . | . . . . . . . Parts Attached 31 | 7 4 . 9 6 . 5 Power 7 | 1 . . 2 2 . 2 Engine 6 | 1 . . 2 2 . 1 Core 1 | . . . . . . 1 Reactor . | . . . . . . . Propulsion 7 | 2 1 . 4 . . . Treads 1 | . . . 1 . . . Leg . | . . . . . . . Wheel 3 | 2 1 . . . . . Hover 3 | . . . 3 . . . Flight . | . . . . . . . Utility 8 | 2 1 . 2 1 . 2 Device 4 | 1 . . 1 1 . 1 Storage 3 | 1 1 . 1 . . . Processor 1 | . . . . . . 1 Hackware . | . . . . . . . Protection . | . . . . . . . Artifact . | . . . . . . . Weapon 9 | 2 2 . 1 3 . 1 Energy Gun 2 | . . . . 2 . . Energy Cannon 1 | . . . . 1 . . Ballistic Gun 3 | 2 1 . . . . . Ballistic Cannon 1 | . . . 1 . . . Launcher . | . . . . . . . Special Weapon . | . . . . . . . Impact Weapon . | . . . . . . . Slashing Weapon 1 | . . . . . . 1 Piercing Weapon . | . . . . . . . Special Melee Weapon 1 | . 1 . . . . . Unidentified Prototypes 3 | . . . . 3 . . Parts Lost 4 | . 2 . 1 . . 1 Power 1 | . . . 1 . . . Propulsion 2 | . 1 . . . . 1 Utility . | . . . . . . . Weapon 1 | . 1 . . . . . Highest Loss Streak 2 | . 2 . 1 . . 1 To Critical Strikes . | . . . . . . . Average Backups 8 | 3 8 9 8 9 9 8 Power . | . 1 2 1 . . . Propulsion . | 2 2 2 . . . . Utility 3 | . 1 2 2 3 4 5 Weapon 2 | 1 2 2 2 4 4 2 Tool/Special . | . . . . . . . Unused Backups 19 | . . 2 1 2 . 14 Power . | . . . . . . . Propulsion 1 | . . . 1 . . . Utility 8 | . . 1 . . . 7 Weapon 9 | . . 1 . 2 . 6 Tool/Special 1 | . . . . . . 1 Average Slot Usage (%) 97 | . 100 100 98 99 100 96 Engine 8 | . 14 14 11 11 11 6 Core 2 | . . . . . . 4 Wheel 6 | . 28 28 19 . . . Hover 24 | . . . 2 33 33 32 Device 18 | . 14 14 21 22 22 17 Storage 11 | . 14 14 11 11 11 11 Processor 2 | . . . . . . 4 Energy Gun 6 | . . . . 8 11 7 Energy Cannon 6 | . . . . 9 11 7 Ballistic Gun 6 | . 26 28 14 1 . . Slashing Weapon 1 | . . . . . . 3 Peak Build Rating 34 | 7 8 9 16 22 19 34 Average Rating 18 | 5 7 8 13 19 19 24 On Entrance 11 | . 7 8 9 16 19 19 Naked Turns . | . . . . . . . Heaviest Build 51 | 14 19 18 51 27 24 26 Greatest Support 32 | 32 32 26 26 21 21 21 Greatest Overweight (x) 6 | . . . 6 1 1 1 Average Overweight (x) . | . . . . . 1 . Largest Inventory Capacity 20 | 8 10 10 20 10 10 10 Average Capacity 10 | 7 8 10 16 10 10 10 Most Carried 12 | 8 10 10 12 10 10 10 Average Carried 9 | 4 8 9 9 9 10 9 Final Capacity 10 | 8 10 10 10 10 10 10 Final Carried 10 | 7 9 10 10 10 10 10 Class Distribution -------------------- 53% | Mutant 46% | Scavenger-Mutant Dominant Class ---------------- Mutant | -10/Materials Mutant | -10/Mines Mutant | -9/Materials Scavenger-Mutant | -9/Storage Scavenger-Mutant | -9/Recycling Scavenger-Mutant | -9/Scraptown Resources | -11 -10 -10 -9 -9 -9 -9 ----------- Run | Yrd Mat Min Mat Sto Rec Scr Matter Collected 756 | 302 128 18 155 68 . 85 Remotely . | . . . . . . . Salvage Created 1135 | 143 254 . 192 483 . 63 Parts 58 | 5 17 . 6 27 . 3 Haulers Intercepted 4 | . 1 . . 3 . . Recyclers Shooed 1 | . . . . 1 . . Parts Field Recycled . | . . . . . . . Retrieved Matter . | . . . . . . . Parts Self-Destructed . | . . . . . . . Prevented . | . . . . . . . Kills | -11 -10 -10 -9 -9 -9 -9 ------- Run | Yrd Mat Min Mat Sto Rec Scr Combat Hostiles Destroyed 17 | . 7 . 3 6 . 1 Melee 1 | . . . . . . 1 Guns 7 | . 7 . . . . . Cannons 9 | . . . 3 6 . . Classes Destroyed 7 | 2 3 . 1 . . 1 Tunneler 2 | 2 . . . . . . Hauler 4 | . 1 . . 3 . . Recycler 3 | 1 . . 1 1 . . Swarmer 3 | . 3 . . . . . Grunt 8 | . 4 . . 4 . . Sentry 5 | . . . 3 2 . . Mutant 1 | . . . . . . 1 Best Kill Streak 5 | 2 4 . 2 5 . 1 Combat Bots Only 4 | . 4 . 2 3 . 1 Max Kills in Single Turn 1 | 1 1 . 1 1 . 1 Gunslinging . | . . . . . . . Exploded . | . . . . . . . Melee 1 | . . . . . . 1 Uniques/NPCs Destroyed . | . . . . . . . Combat | -11 -10 -10 -9 -9 -9 -9 -------- Run | Yrd Mat Min Mat Sto Rec Scr Hostile Shots Fired 86 | . 33 8 24 18 . 3 Missed 20 | . 7 1 8 2 . 2 Hits 66 | . 26 7 16 16 . 1 Melee 1 | . . . . . . 1 Projectile 65 | . 26 7 16 16 . . Critical Strikes 2 | . . . 1 1 . . Part Disruptions 1 | . . 1 . . . . Damage Taken 1071 | . 299 93 234 173 . 272 Core 191 | . 97 10 60 24 . . Absorbed by Shields 9 | . . . . 9 . . Core Remaining (%) 78 | 100 . 57 . . . . Volleys Fired 76 | 8 26 2 12 26 2 . Largest 2 | 2 2 2 2 2 2 . Hottest 124 | 40 40 40 50 124 124 . Shots Fired 144 | 16 52 4 24 44 4 . Gun 104 | 16 52 4 12 18 2 . Cannon 40 | . . . 12 26 2 . Launcher . | . . . . . . . Special . | . . . . . . . Kinetic 98 | 16 52 4 24 2 . . Thermal 46 | . . . . 42 4 . Explosive . | . . . . . . . Electromagnetic . | . . . . . . . Robot Hit Streak 21 | 8 14 1 17 21 1 . Robot Miss Streak 3 | 1 1 3 1 2 1 . Penetration Max . | . . . . . . . Secondary Targets . | . . . . . . . Shots Hit Robots 112 | 11 39 1 22 35 2 2 Core Hits 40 | 5 15 . 7 12 . 1 Critical Kills 1 | . 1 . . . . . Critical Parts Destroyed . | . . . . . . . Critical Strikes 4 | . 1 . . 3 . . Burn 3 | . . . . 3 . . Destroy 1 | . 1 . . . . . Melee Attacks 5 | . . . . . . 5 Impact . | . . . . . . . Slashing 5 | . . . . . . 5 Piercing . | . . . . . . . Sneak Attacks . | . . . . . . . Combat Hostiles . | . . . . . . . Follow-up Attacks . | . . . . . . . Damage Inflicted 1557 | 109 396 10 285 630 41 86 Guns 819 | 109 396 10 84 220 . . Cannons 652 | . . . 201 410 41 . Explosions . | . . . . . . . Melee 86 | . . . . . . 86 Ramming . | . . . . . . . Kinetic 800 | 109 396 10 285 . . . Thermal 671 | . . . . 630 41 . Explosive . | . . . . . . . Electromagnetic . | . . . . . . . Impact . | . . . . . . . Slashing 86 | . . . . . . 86 Piercing . | . . . . . . . Highest Corruption 3 | . . . . . . 3 Average Corruption 3 | . . . . . . 3 Corruption Purged . | . . . . . . . Corruption Blocked . | . . . . . . . Effects 1 | . . . . . . 1 Matter Fused 1 | . . . . . . 1 Overload Shots . | . . . . . . . Overflow Damage . | . . . . . . . Projectiles . | . . . . . . . Explosions . | . . . . . . . Melee . | . . . . . . . Knockbacks . | . . . . . . . Impact . | . . . . . . . Kinetic . | . . . . . . . Secondary . | . . . . . . . Self-Inflicted Damage . | . . . . . . . Shots . | . . . . . . . Rammed . | . . . . . . . Targets Rammed . | . . . . . . . Kicked . | . . . . . . . Crushed . | . . . . . . . Highest Temperature 276 | . 18 . 17 276 33 . Average Temperature 64 | . 8 . 6 94 18 . Received Heat Transfer 356 | . 141 20 99 96 . . Effects 1 | . . . . 1 . . Energy Bleed 1 | . . . . 1 . . Siege Activations . | . . . . . . . Martial Activations . | . . . . . . . Shielding Activations . | . . . . . . . Robots Disrupted . | . . . . . . . Combat Hostiles . | . . . . . . . Robots Corrupted . | . . . . . . . Combat Hostiles . | . . . . . . . Parts Fried . | . . . . . . . Impact Corruptions . | . . . . . . . Robots Melted 1 | . . . . 1 . . Combat Hostiles . | . . . . . . . Parts Melted 3 | . . . . 3 . . Heat Transferred 1591 | . . . . 1517 74 . Parts Sabotaged . | . . . . . . . Parts Stolen . | . . . . . . . Parts Stripped . | . . . . . . . Power Chain Reactions . | . . . . . . . Alert | -11 -10 -10 -9 -9 -9 -9 ------- Run | Yrd Mat Min Mat Sto Rec Scr Maximum Alert Level . | . . . . . . . Low Security (%) 100 | 100 100 100 100 100 100 . Level 1 . | . . . . . . . Level 2 . | . . . . . . . Level 3 . | . . . . . . . Level 4 . | . . . . . . . Level 5 . | . . . . . . . High Security . | . . . . . . . Max Security . | . . . . . . . Peak Influence 106 | 10 90 7 40 106 40 . Initial 40 | . . 7 . 5 40 . Average 22 | 1 34 . 8 49 10 . Influence Increases 601 | 15 227 . 104 233 22 . Destroy 0b10 Robot/C 320 | . 140 . 60 120 . . Destroy 0b10 Robot/NC 45 | 15 5 . 5 20 . . Destroy Leader 98 | . 32 . 30 36 . . Successful Hack 63 | . 5 . 9 27 22 . Disable Machine 30 | . . . . 30 . . Lose Combat Pursuer 45 | . 45 . . . . . Influence Decreases 601 | 15 206 21 89 142 128 . Entered New Map 90 | . . 14 . 10 66 . Time Decay 481 | 15 186 7 79 132 62 . Lost Part 30 | . 20 . 10 . . . Squads Dispatched 3 | . 1 . . 2 . . Investigation 1 | . . . . 1 . . Extermination . | . . . . . . . Reinforcement 2 | . 1 . . 1 . . Assault . | . . . . . . . Garrison . | . . . . . . . Intercept . | . . . . . . . Searches Triggered . | . . . . . . . Construction Impeded . | . . . . . . . Haulers Reinforced . | . . . . . . . Active Scanning Responses . | . . . . . . . Cargo Convoy Interrupts . | . . . . . . . Stealth | -11 -10 -10 -9 -9 -9 -9 --------- Run | Yrd Mat Min Mat Sto Rec Scr Distress Signals 3 | . 2 . . 1 . . Communications Jammed . | . . . . . . . Distress Signals . | . . . . . . . Times Spotted 33 | . 12 4 5 7 . 5 Peak Tracking Total 14 | . 4 14 2 4 . 4 Tactical Retreats 4 | . 2 2 . . . . Traps | -11 -10 -10 -9 -9 -9 -9 ------- Run | Yrd Mat Min Mat Sto Rec Scr Traps Triggered 1 | . . . . 1 . . Indirectly . | . . . . . . . Trap Hack Attempts 10 | . 10 . . . . . Triggered . | . . . . . . . Disarmed 1 | . 1 . . . . . Reprogrammed 6 | . . . . 6 . . Reused . | . . . . . . . Traps Extracted . | . . . . . . . Installed . | . . . . . . . Triggered . | . . . . . . . Machines | -11 -10 -10 -9 -9 -9 -9 ---------- Run | Yrd Mat Min Mat Sto Rec Scr Machines Disabled 4 | . . . . 2 . 2 Max in Single Turn 1 | . . . . 1 . 1 Machines Repaired . | . . . . . . . Machines Dismantled . | . . . . . . . Machines Sabotaged . | . . . . . . . Overloaded Fab Kills . | . . . . . . . Hacking | -11 -10 -10 -9 -9 -9 -9 --------- Run | Yrd Mat Min Mat Sto Rec Scr Machines Accessed 16 | . 3 1 2 4 4 2 Terminals 13 | . 3 . 2 4 4 . Fabricators . | . . . . . . . Repair Stations . | . . . . . . . Recycling Units . | . . . . . . . Scanalyzers . | . . . . . . . Garrison Access . | . . . . . . . Total Hacks 50 | . 8 1 6 15 14 6 Successful 28 | . 3 1 4 8 6 6 Failed 22 | . 5 . 2 7 8 . Catastrophic 2 | . . . . 1 1 . Database Lockouts . | . . . . . . . Manual 12 | . 5 . 4 3 . . Terminals 43 | . 8 . 6 15 14 . Fabricators . | . . . . . . . Repair Stations . | . . . . . . . Recycling Units . | . . . . . . . Scanalyzers . | . . . . . . . Garrison Access . | . . . . . . . Terminal Hacks 23 | . 2 1 1 7 6 6 Record 5 | . . . . . . 5 Part Schematic 2 | . . . . 1 1 . Robot Analysis 1 | . 1 . . . . . Prototype ID Bank 1 | . . . . . 1 . Open Door 4 | . . 1 . 2 . 1 Branch Access Points 2 | . . . 1 1 . . Alert Level 1 | . . . . 1 . . Locate Traps 2 | . 1 . . 1 . . Reprogram Traps 1 | . . . . 1 . . Registered Components 1 | . . . . . 1 . Zone Layout 3 | . . . . . 3 . Fabricator Hacks . | . . . . . . . Repair Station Hacks . | . . . . . . . Recycling Unit Hacks . | . . . . . . . Scanalyzer . | . . . . . . . Garrison Access Hacks . | . . . . . . . Unauthorized Hacks 5 | . 1 . 3 1 . . Terminals 5 | . 1 . 3 1 . . Assimilate 1 | . . . . 1 . . Botnet 3 | . 1 . 2 . . . Skim 1 | . . . 1 . . . Fabricators . | . . . . . . . Repair Stations . | . . . . . . . Recycling Units . | . . . . . . . Scanalyzers . | . . . . . . . Garrison Access . | . . . . . . . Data Cores Recovered . | . . . . . . . Used . | . . . . . . . Hacking Detections 14 | . 3 . 2 5 4 . Full Trace Events 1 | . . . . 1 . . Feedback Events . | . . . . . . . Feedback Blocked . | . . . . . . . Robot Schematics Acquired . | . . . . . . . Robots Built . | . . . . . . . Authchips . | . . . . . . . Time . | . . . . . . . Total Robot Build Rating . | . . . . . . . Part Schematics Acquired 2 | . . . . 1 1 . Parts Built . | . . . . . . . Authchips . | . . . . . . . Time . | . . . . . . . Total Part Build Rating . | . . . . . . . Parts Repaired . | . . . . . . . Time . | . . . . . . . Parts Recycled . | . . . . . . . Recycled Matter . | . . . . . . . Retrieved Matter . | . . . . . . . Retrieved Components . | . . . . . . . Parts Scanalyzed . | . . . . . . . Part Schematics Acquired . | . . . . . . . Parts Damaged . | . . . . . . . Bothacking | -11 -10 -10 -9 -9 -9 -9 ------------ Run | Yrd Mat Min Mat Sto Rec Scr Used RIF Installer . | . . . . . . . Robots Hacked . | . . . . . . . Non-combat . | . . . . . . . Combat . | . . . . . . . Robot Hacks Applied . | . . . . . . . Relay Couplers Released . | . . . . . . . Fabnet Peak Effective % . | . . . . . . . Robots Rewired . | . . . . . . . Allies Hacked . | . . . . . . . Hacks Repelled . | . . . . . . . Allies | -11 -10 -10 -9 -9 -9 -9 -------- Run | Yrd Mat Min Mat Sto Rec Scr Total Allies . | . . . . . . . Largest Group . | . . . . . . . Highest-Rated Group . | . . . . . . . Highest-Rated Ally . | . . . . . . . Total Orders . | . . . . . . . Ally Attacks . | . . . . . . . Total Damage . | . . . . . . . Kills . | . . . . . . . Allies Corrupted . | . . . . . . . Allies Melted 2 | . . . . . . 2 Intel | -11 -10 -10 -9 -9 -9 -9 ------- Run | Yrd Mat Min Mat Sto Rec Scr Active Infowar (turns) 2598 | 15 422 157 307 310 299 1088 Terrain 2003 | . . . 306 310 299 1088 Seismic 998 | 15 422 157 307 97 . . Robot Analysis Total 1 | . 1 . . . . . Derelict Logs Recovered 2 | . . 2 . . . . Drone Launches . | . . . . . . . Drone Recoveries . | . . . . . . . Exploration | -11 -10 -10 -9 -9 -9 -9 ------------- Run | Yrd Mat Min Mat Sto Rec Scr Turns Passed 3359 | 111 422 157 307 310 299 1753 Spaces Moved 3118 | 72 244 166 203 202 262 1969 Core 2 | 1 . . 1 . . . Treads 40 | . . . 40 . . . Legs . | . . . . . . . Wheels 606 | 71 244 166 125 . . . Hover 2470 | . . . 37 202 262 1969 Flight . | . . . . . . . Fastest Speed 50 | 50 90 90 52 52 112 52 Average Speed 91 | 99 98 90 109 91 112 85 Slowest Speed 350 | 100 100 90 350 112 112 116 Overloaded Moves . | . . . . . . . Propulsion Burnouts . | . . . . . . . Robots Hopped . | . . . . . . . Potential Cave-ins . | . . . . . . . Cave-ins Triggered 1 | . . . . . . 1 Exploration Rate (%) 36 | 4 43 27 17 30 43 90 Regions Visited 6 Branch Regions 4 Pre-discovered Areas 1 | . . 1 . . . . Known Exits Taken 2 | . . . 1 1 . . Unknown Exits Taken 4 | 1 1 1 . . 1 . Scrap Searched 11 | . . 1 . . . 10 Spaces Dug . | . . . . . . . Terrain Destroyed . | . . . . . . . Melee . | . . . . . . . Projectile . | . . . . . . . AOE . | . . . . . . . Terrain Rammed . | . . . . . . . Walls Destroyed . | . . . . . . . Machines Disabled . | . . . . . . . Actions | -11 -10 -10 -9 -9 -9 -9 --------- Run | Yrd Mat Min Mat Sto Rec Scr Total 3491 | 94 378 171 266 282 263 2037 Wait 168 | . 89 . 28 28 . 23 Move 3112 | 71 243 165 202 201 261 1969 Hop . | . . . . . . . Pick Up 34 | 8 4 2 7 2 . 11 Fast Attach 21 | 6 . . 4 5 . 6 Attach 7 | 1 2 . 3 . . 1 Detach 1 | . . . . . . 1 Swap 9 | . 3 . 3 2 . 1 Drop 36 | . 1 2 7 7 . 19 Fire 76 | 8 26 2 12 26 2 . Melee 5 | . . . . . . 5 Ram . | . . . . . . . Kick . | . . . . . . . Crush . | . . . . . . . Escape Stasis 11 | . . . . 11 . . Rewire 1 | . . . . . . 1 Trap 10 | . 10 . . . . . Miscellaneous . | . . . . . . . Route ------- -11/Scrapyard -10/Materials (discovered 3 exits: *Mat / *Min / [*Sub]) -10/Mines -9/Materials (discovered 5 exits: Mat / Min x2 / *Sto x2) -9/Storage -9/Recycling -9/Scraptown (discovered 1 exit: [*Fac]) History --------- Turn | Location | Event 19 | -11/Scrapyard | Discovered new exit (range 15) 112 | -11/Scrapyard | Entered Materials 284 | -10/Materials | Discovered new exit (range 11) 288 | -10/Materials | Discovered new exit (range 16) 308 | -10/Materials | Build established: Mutant 528 | -10/Materials | Discovered new exit (range 8) 534 | -10/Materials | Entered Mines 550 | -10/Mines | Learned location of Zion (-6) 557 | -10/Mines | Found the Drone Emporium 563 | -10/Mines | Found Prototype Device 592 | -10/Mines | Discovered new exit (range 6) 618 | -10/Mines | Learned location of 1 exit from Materials 631 | -10/Mines | Assembled infested the area 636 | -10/Mines | Assisted by a Guerilla fighting off Assembled 691 | -10/Mines | Entered Materials 691 | -9/Materials | Evolved 2 slots: Propulsion x1, Utility x1 692 | -9/Materials | Identified exit to Materials 748 | -9/Materials | Identified exit to Mines 748 | -9/Materials | Identified exit to Storage 998 | -9/Materials | Entered Storage 1205 | -9/Storage | Identified exit to Recycling 1303 | -9/Storage | Used back door to open Recycling access 1308 | -9/Storage | Entered Recycling 1390 | -9/Recycling | Build established: Scavenger-Mutant 1441 | -9/Recycling | Scanned before Scraplab entrance 1591 | -9/Recycling | Entered Scraplab 1603 | -9/Recycling | Discovered new exit (range 3) 1607 | -9/Recycling | Entered Scraptown 1911 | -9/Scraptown | Discovered new exit (range 11) 1954 | -9/Scraptown | Heard Great Nut preacher, LISTEN AND RECITE! 2008 | -9/Scraptown | Visited Comm Corps 2073 | -9/Scraptown | Visited Fellowship of the Rings 2102 | -9/Scraptown | Visited Cyclists 2317 | -9/Scraptown | Visited IN-MT5's Study 2364 | -9/Scraptown | Visited The Evicted 2404 | -9/Scraptown | Visited TADAMA 2414 | -9/Scraptown | Visited Bundlers 2512 | -9/Scraptown | Visited UFD Registry 2512 | -9/Scraptown | Registered with UFD as "Wirerigger" 2536 | -9/Scraptown | Visited Scrapoid Pod Storage 2554 | -9/Scraptown | Visited Junk Repository 2606 | -9/Scraptown | Visited Scrap Suit Storage 2626 | -9/Scraptown | Visited Botcube Research 2647 | -9/Scraptown | Visited DA-N13 Charitable Foundation 2661 | -9/Scraptown | Found DCF Scrap (27 items) 2684 | -9/Scraptown | Visited A0-MCA Data Center 2692 | -9/Scraptown | Given a B- rating by A0-MCA 2697 | -9/Scraptown | Found A0-MCA's Component Scanner 2715 | -9/Scraptown | Visited Modified Component R&D 2784 | -9/Scraptown | Visited Science Testing Area 2811 | -9/Scraptown | Visited Curators Association 2847 | -9/Scraptown | Visited Sword Containment 2882 | -9/Scraptown | Build established: Mutant 3087 | -9/Scraptown | Found Lrg. Botcube 3259 | -9/Scraptown | Met Optimus 3259 | -9/Scraptown | Accepted into 0bPrime 3321 | -9/Scraptown | Civil war broke out across Scraptown 3326 | -9/Scraptown | Found PL-3XN's Ring of Power 3331 | -9/Scraptown | Found DM-GVY's Chainsaw 3348 | -9/Scraptown | Crushed by falling debris 3360 | -9/Scraptown | Self-destructed Last Messages --------------- 03331_ Dropped Trap Extractor. 03331_ Acquired DM-GVY's Chainsaw. 03332_ Slug penetrates LE-3BD(r). 03333_ Enclosure breached. 03337_ RT-B58(r): "I knew Optimus was a traitor." 03337_ Dropped Imp. Datajack. 03337_ Acquired Melee Analysis Suite. 03338_ Slug penetrates 1K-48B(M). 03343_ 1K-48B(M) suffers critical hit (Destroy). 03345_ Slug penetrates 1K-48B(M). 03347_ 1K-48B(M) destroyed. 03348_ The unstable cave ceiling collapses. 03348_ Crushed by falling debris. 03348_ Imp. Hover Unit destroyed. 03348_ System corrupted by crushing effect (+3). 03349_ Acquired 35 matter. 03357_ System corrupted: Matter fused (-5). 03357_ J0-NEY(x) suffers critical hit (Destroy). 03358_ Slug penetrates Wall. Map ----- +----------------------------------------------------+ | ???????????????###################???####????????? | | ???????????????"""##"""##""|##"""#??## ##???????? | | ??????????????#"" ##"" ##""|##!!"#### ###### | | ??????????????#"" | | ??????????????# | | ??????????????####################### ########? | | ??????????????????????????##????????## ########## | | ###########??????###?##### ??????????# #""""""""" | | # #??????#"###"# "???????????# #" " #"""" | | # #???#### "=" #"##??????????# #? #== | | # #???#" """ "############ ####+# | | # #????#"" """" ## #""" | | # #????#]" !# ## #"= | | # #???##"" % "## * ## #"" "" | | ##### #####???#" "#!= ## #" "# | | ?###X ####????##"" /"## ## #X "" | | ?# #?????# " " ## ## ## = | | ?# [] #????##" ""## ## #" | | ?# /[] #????#" "# ## #" | | ?####### #????######!######;#### ##### ## ####### | | #??##### ###########%######;#### ##### ## ####### | | ???#"""" """ """""""[=""""" """" """"" "" "##"""" | | ?#?#" "## """ | | ???#" "## """ | | ???#" r "## " | | ???#" ! @r x "## ! | | ####" | | """" """""""""""" """"""""""""""" "## """ | | """" """"""""""""" """""""""""""" "## ""! | | """" ""###### ###;############"" "## """ | | """" ""# ##????????#"" "###### | | """" ""# X"#????????#"" "## / | | """" ""# "" "" ##?#??????#"" "## % | | """" ""# "" "" X"#??#???###"" "## *! | | """" ""# " " ######### #"" "##==== | | ####" "" "" * ![] | | ???#" "" "" "##!*!] | | ####" ""# " " ######### #"" "##!!/% | | ""# "" "" ""#??????###"" "##*[[* | | ""# "" "" ##???????##"" "###### | | ""# X"#????????#"" "## """ | | ""# ##????????#"" "## """ | | ""###### ################"" "## " " | | """""""""""""""""""""""""""" "## | | """""""""""""""""""""""""""" | | "## | | "## | | "## | | """#" ## "" | | ???#" #"" " | +----------------------------------------------------+ Best States ------------- Heat Dissipation 42 Energy Generation 14 Energy Capacity 280 Matter Stores 300 Matter Capacity 300 Sight Range 16 Terrain Scan Range 16 Terrain Scan Density 10 Evasion (%) 54 Recoil Reduction 1 Item Schematics ----------------- Armor Integrity Analyzer | -9/Storage | Hacked Actuator Array | -9/Recycling | Hacked Robot Schematics ------------------ None Fabricated ------------ Nothing Repaired ---------- Nothing Alien Tech Used ----------------- None Achievements -------------- None Challenges ------------ None Game ------ Seed ServoBoreMiniperforator Manual? 0 Play Time 00:41:43 Cumulative 49.0 hours Start 2025.05.22 @ 18:45:20 End 2025.05.22 @ 19:32:00 Sessions 1 Manual Loads 0 Difficulty Rogue Special Mode None Game No. 83 Rogue 83 Adventurer 0 Explorer 0 Win Type - Total 0 Types 0/0/0/0/0/0/0/0/0/0 Lore% 41 Gallery% 31 Achievement% 30 Wizard Run 0 Options --------- Layout 2 ASCII 0 Keyboard 1 Movement Arrows Keybinds 0 Fullscreen 2 Font 32/SmallcapsGlow Map View 50x44 Zoom Use 0% Tactical HUD 1 Map Filters NONE Filters NONE Steam 1 RUN: 302de3c0-d706-4291-95b3-cb93b028c307